Cogmind - Beta 13 @@@ ROGUE MODE // 2024.04.01 @ 20:00:07 Player: Borbus Result: Destroyed by Y-54 Guardian with Gatling Laser Performance ------------- Evolutions (3) 1500 Regions Visited (4) 800 Robots Destroyed (70) 350 Value Destroyed (2078) 2078 Prototype IDs (2) 40 Alien Tech Used (0) 0 Bonus (61) 61 TOTAL SCORE: 4829 Bonus ------- High Alert Combat Kills 33 Follower Combat Kills 75 Friendly Fire -47 Cogmind --------- Core Integrity 0/700 Matter 121/300 Energy 100/100 System Corruption 4% Temperature Cool (6) Movement Core (50) Location -7/Factory Parts ------- > --- POWER (2) -------- (None) > --- PROPULSION (4) --- (None) > --- UTILITY (4) ------ (None) > --- WEAPON (3) ------- (None) > --- INVENTORY (5) ---- VSS Leg Improved Sensor Array Component Analysis Suite Peak State ------------ > --- POWER ------------ Nuclear Core Nuclear Core > --- PROPULSION ------- Armored Huge Wheel Armored Huge Wheel > --- UTILITY ---------- Improved Heat Sink Improved Sensor Array Energy Filter Transmission Jammer > --- WEAPON ----------- Gauss Rifle Gauss Cannon Gauss Cannon > --- INVENTORY -------- Nuclear Core Armored Treads Cooling System Reactive Plating Improved Assault Rifle [Rating: 49] Favorites ----------- Power Nuclear Core Engine Light Ion Engine Power Core Nuclear Core Propulsion VSS Leg Treads Light Treads Leg VSS Leg Wheel Wheel Utility Improved Heat Sink Device Improved Heat Sink Storage Small Storage Unit Processor Targeting Computer Protection Reactive Plating Weapon Gauss Cannon Energy Gun Lightning Gun Ballistic Gun Light Assault Rifle Ballistic Cannon Gauss Cannon Build | -11 -10 -10 -8 -7 ------- Run | Yrd Mat Sub Mat Fac Slots Evolved 6 | . . . 4 2 Power 1 | . . . . 1 Propulsion 2 | . . . 1 1 Utility 2 | . . . 2 . Weapon 1 | . . . 1 . Parts Attached 96 | 12 12 1 38 33 Power 14 | 1 3 . 5 5 Engine 4 | 1 2 . 1 . Core 10 | . 1 . 4 5 Reactor . | . . . . . Propulsion 22 | 4 2 . 10 6 Treads 4 | 2 . . 2 . Leg 12 | . 2 . 5 5 Wheel 6 | 2 . . 3 1 Hover . | . . . . . Flight . | . . . . . Utility 38 | 3 4 1 13 17 Device 24 | 2 1 . 11 10 Storage 1 | 1 . . . . Processor 3 | . 1 . 1 1 Hackware . | . . . . . Protection 10 | . 2 1 1 6 Artifact . | . . . . . Weapon 22 | 4 3 . 10 5 Energy Gun 4 | 2 . . 1 1 Energy Cannon . | . . . . . Ballistic Gun 12 | 2 3 . 5 2 Ballistic Cannon 6 | . . . 4 2 Launcher . | . . . . . Special Weapon . | . . . . . Impact Weapon . | . . . . . Slashing Weapon . | . . . . . Piercing Weapon . | . . . . . Special Melee Weapon . | . . . . . Unidentified Prototypes 1 | . . . 1 . Parts Lost 24 | . 1 1 5 17 Power 5 | . . . 2 3 Propulsion 6 | . 1 . 1 4 Utility 7 | . . 1 1 5 Weapon 6 | . . . 1 5 Highest Loss Streak 15 | . 1 1 2 15 To Critical Strikes . | . . . . . Average Slot Usage (%) 91 | . 99 84 88 91 Engine 3 | . 11 14 1 . Core 9 | . 2 . 7 14 Leg 18 | . 7 28 22 19 Wheel 6 | . 20 . . 5 Device 16 | . 8 . 21 18 Processor 5 | . 12 1 5 1 Protection 6 | . 6 12 1 9 Energy Gun 4 | . 7 . . 5 Ballistic Gun 9 | . 19 28 9 2 Ballistic Cannon 11 | . . . 15 14 Naked Turns 1 | . . . . 1 Heaviest Build 56 | 12 11 23 32 56 Greatest Support 57 | 40 20 20 45 57 Greatest Overweight (x) 2 | . . 1 1 2 Average Overweight (x) . | . . . . . Largest Inventory Capacity 8 | 8 5 5 5 5 Average Capacity 5 | 7 5 5 5 5 Most Carried 6 | 6 5 5 5 5 Average Carried 4 | 2 4 4 4 4 Final Capacity 5 | 5 5 5 5 5 Final Carried 5 | 2 5 5 5 3 Class Distribution -------------------- 30% | Tank 26% | Scavenger-Skirmisher 23% | Mutant 11% | Scavenger-Mutant 8% | Gunner Dominant Class ---------------- Mutant | -10/Materials Mutant | -10/Subcaves Scavenger-Skirmisher | -8/Materials Tank | -7/Factory Resources | -11 -10 -10 -8 -7 ----------- Run | Yrd Mat Sub Mat Fac Matter Collected 2340 | 280 196 . 1249 615 Remotely . | . . . . . Salvage Created 2285 | 148 327 . 1121 689 Parts 151 | 15 24 . 83 29 Haulers Intercepted . | . . . . . Recyclers Shooed 4 | 1 1 . 1 1 Parts Field Recycled 15 | . . . . 15 Retrieved Matter 248 | . . . . 248 Parts Self-Destructed 8 | . . 8 . . Prevented . | . . . . . Kills | -11 -10 -10 -8 -7 ------- Run | Yrd Mat Sub Mat Fac Combat Hostiles Destroyed 43 | . 8 . 19 16 Guns 14 | . 8 . 4 2 Cannons 27 | . . . 15 12 Classes Destroyed 14 | 3 4 . 4 3 Worker 5 | 1 . . 2 2 Builder 4 | . . . 3 1 Tunneler 3 | 3 . . . . Recycler 7 | 1 1 . 4 1 Mechanic 1 | . . . . 1 Operator 1 | . 1 . . . Watcher 6 | . 2 . 4 . Swarmer 10 | . 6 . 4 . Grunt 20 | . 2 . 10 8 Sentry 2 | . . . 1 1 Specialist 2 | . . . . 2 Hunter 6 | . . . 3 3 Programmer 2 | . . . . 2 Heavy 1 | . . . 1 . Best Kill Streak 5 | 2 3 . 5 4 Combat Bots Only 4 | . 3 . 4 3 Max Kills in Single Turn 2 | 1 1 . 1 2 Gunslinging . | . . . . . Exploded . | . . . . . Melee . | . . . . . Uniques/NPCs Destroyed . | . . . . . Combat | -11 -10 -10 -8 -7 -------- Run | Yrd Mat Sub Mat Fac Hostile Shots Fired 533 | . 44 25 138 326 Missed 201 | . 20 10 51 120 Damage Taken 4693 | . 242 381 1182 2888 Core 934 | . 71 22 141 700 Absorbed by Shields . | . . . . . Redirected to Shielding 209 | . . . . 209 Ignored by Resistances 34 | . . . . 34 Core Remaining (%) 78 | 100 . 62 74 . Volleys Fired 188 | 13 42 4 71 58 Largest 3 | 2 2 2 3 3 Hottest 151 | 80 60 40 144 151 Shots Fired 455 | 26 68 8 196 157 Gun 218 | 26 68 8 61 55 Cannon 237 | . . . 135 102 Launcher . | . . . . . Special . | . . . . . Kinetic 368 | . 45 8 186 129 Thermal 13 | 13 . . . . Explosive . | . . . . . Electromagnetic 74 | 13 23 . 10 28 Robot Hit Streak 20 | 3 20 5 6 6 Robot Miss Streak 11 | 5 3 1 11 8 Penetration Max 1 | . . . 1 1 Secondary Targets 1 | . 1 . . . Max Gunslinging Chain 1 | . 1 . . . Shots Hit Robots 232 | 13 45 7 79 88 Core Hits 120 | 6 20 1 46 47 Critical Kills . | . . . . . Critical Parts Destroyed . | . . . . . Critical Strikes 15 | . . . 7 8 Blast 15 | . . . 7 8 Melee Attacks . | . . . . . Impact . | . . . . . Slashing . | . . . . . Piercing . | . . . . . Sneak Attacks . | . . . . . Combat Hostiles . | . . . . . Follow-up Attacks . | . . . . . Damage Inflicted 5257 | 191 560 36 2104 2366 Guns 1856 | 154 476 36 523 667 Cannons 3204 | . . . 1569 1635 Explosions 96 | 37 59 . . . Melee . | . . . . . Ramming 101 | . 25 . 12 64 Kinetic 4154 | . 244 36 1938 1936 Thermal 175 | 116 59 . . . Explosive . | . . . . . Electromagnetic 827 | 75 232 . 154 366 Impact . | . . . . . Slashing . | . . . . . Piercing . | . . . . . Highest Corruption 4 | . . . . 4 Average Corruption 1 | . . . . 1 Corruption Purged . | . . . . . Corruption Blocked . | . . . . . Effects 1 | . . . . 1 Energy Discharges 1 | . . . . 1 Overload Shots . | . . . . . Overflow Damage 113 | . . . 25 88 Projectiles 112 | . . . 25 87 Explosions . | . . . . . Melee 1 | . . . . 1 Knockbacks 24 | . 1 . 11 12 Impact 1 | . 1 . . . Kinetic 22 | . . . 10 12 Secondary 1 | . . . 1 . Self-Inflicted Damage 4 | . 4 . . . Shots . | . . . . . Rammed 3 | . 3 . . . Targets Rammed 17 | . 7 1 3 6 Kicked 14 | . 4 1 3 6 Crushed . | . . . . . Highest Temperature 372 | 36 88 . 270 372 Average Temperature 73 | 9 22 . 81 97 Received Heat Transfer 1167 | . 66 102 468 531 Effects 5 | . . . . 5 Shutdowns 1 | . . . . 1 Energy Bleed 1 | . . . . 1 Interference 3 | . . . . 3 Siege Activations . | . . . . . Robots Corrupted 2 | . . . . 2 Combat Hostiles 2 | . . . . 2 Parts Fried 2 | . 2 . . . Impact Corruptions 1 | . . . . 1 Robots Melted . | . . . . . Combat Hostiles . | . . . . . Parts Melted 1 | . 1 . . . Heat Transferred 375 | 225 150 . . . Parts Sabotaged . | . . . . . Parts Stolen . | . . . . . Parts Stripped . | . . . . . Power Chain Reactions 2 | 1 1 . . . Alert | -11 -10 -10 -8 -7 ------- Run | Yrd Mat Sub Mat Fac Peak Influence 471 | 25 151 . 471 306 Initial 163 | . 16 . . 163 Average 134 | 13 77 . 195 138 Maximum Alert Level 2 | . . . 2 1 Low Security (%) 80 | 100 100 . 51 88 Level 1 15 | . . . 36 11 Level 2 3 | . . . 11 . Level 3 . | . . . . . Level 4 . | . . . . . Level 5 . | . . . . . High Security . | . . . . . Max Security . | . . . . . Squads Dispatched 10 | . 2 . 2 6 Investigation 4 | . 2 . . 2 Extermination 2 | . . . . 2 Reinforcement 3 | . . . 2 1 Assault . | . . . . . Garrison 1 | . . . . 1 Intercept . | . . . . . Searches Triggered . | . . . . . Construction Impeded 2 | . . . 1 1 Haulers Reinforced . | . . . . . Active Scanning Responses . | . . . . . Cargo Convoy Interrupts 1 | . . . . 1 Stealth | -11 -10 -10 -8 -7 --------- Run | Yrd Mat Sub Mat Fac Distress Signals 1 | . . . 1 . Communications Jammed . | . . . . . Distress Signals . | . . . . . Times Spotted 86 | . 17 9 28 32 Peak Tracking Total 11 | . 3 8 4 11 Tactical Retreats 3 | . . . 1 2 Traps | -11 -10 -10 -8 -7 ------- Run | Yrd Mat Sub Mat Fac Traps Triggered 2 | . 1 . . 1 Indirectly . | . . . . . Trap Hack Attempts . | . . . . . Triggered . | . . . . . Disarmed . | . . . . . Reprogrammed . | . . . . . Reused . | . . . . . Traps Extracted . | . . . . . Installed . | . . . . . Triggered . | . . . . . Machines | -11 -10 -10 -8 -7 ---------- Run | Yrd Mat Sub Mat Fac Machines Disabled 4 | . 1 . 1 2 Max in Single Turn 1 | . 1 . 1 1 Machines Repaired . | . . . . . Machines Dismantled . | . . . . . Machines Sabotaged . | . . . . . Overloaded Fab Kills . | . . . . . Hacking | -11 -10 -10 -8 -7 --------- Run | Yrd Mat Sub Mat Fac Machines Accessed 18 | . 8 . 2 8 Terminals 11 | . 6 . 1 4 Fabricators 2 | . . . . 2 Repair Stations 2 | . 1 . . 1 Recycling Units 3 | . 1 . 1 1 Scanalyzers . | . . . . . Garrison Access . | . . . . . Total Hacks 37 | . 21 . 2 14 Successful 19 | . 12 . 1 6 Failed 18 | . 9 . 1 8 Catastrophic 2 | . . . 1 1 Database Lockouts . | . . . . . Manual . | . . . . . Terminals 19 | . 13 . 1 5 Fabricators 2 | . . . . 2 Repair Stations 10 | . 7 . . 3 Recycling Units 6 | . 1 . 1 4 Scanalyzers . | . . . . . Garrison Access . | . . . . . Terminal Hacks 11 | . 8 . . 3 Record 2 | . 1 . . 1 Robot Analysis 1 | . 1 . . . Open DSF 1 | . . . . 1 Level Access Points 1 | . 1 . . . Terminal Index 1 | . 1 . . . Alert Level 1 | . 1 . . . Unreport Threat 1 | . 1 . . . Dispatch Records 2 | . 1 . . 1 Zone Layout 1 | . 1 . . . Fabricator Hacks 2 | . . . . 2 Network Status 1 | . . . . 1 Build 1 | . . . . 1 Repair Station Hacks 4 | . 4 . . . Scan Component 2 | . 2 . . . Repair 1 | . 1 . . . Refit 1 | . 1 . . . Recycling Unit Hacks 2 | . . . 1 1 Report Inventory 2 | . . . 1 1 Scanalyzer . | . . . . . Garrison Access Hacks . | . . . . . Unauthorized Hacks . | . . . . . Terminals . | . . . . . Fabricators . | . . . . . Repair Stations . | . . . . . Recycling Units . | . . . . . Scanalyzers . | . . . . . Garrison Access . | . . . . . Data Cores Recovered 1 | . 1 . . . Used . | . . . . . Hacking Detections 14 | . 6 . 2 6 Full Trace Events 4 | . 2 . . 2 Feedback Events . | . . . . . Feedback Blocked . | . . . . . Robot Schematics Acquired . | . . . . . Robots Built 3 | . . . . 3 Authchips . | . . . . . Time 67 | . . . . 67 Total Robot Build Rating 12 | . . . . 12 Part Schematics Acquired . | . . . . . Parts Built . | . . . . . Authchips . | . . . . . Time . | . . . . . Total Part Build Rating . | . . . . . Parts Repaired 1 | . 1 . . . Time 36 | . 36 . . . Parts Recycled . | . . . . . Recycled Matter . | . . . . . Retrieved Matter . | . . . . . Retrieved Components . | . . . . . Parts Scanalyzed . | . . . . . Part Schematics Acquired . | . . . . . Parts Damaged . | . . . . . Bothacking | -11 -10 -10 -8 -7 ------------ Run | Yrd Mat Sub Mat Fac Used RIF Installer . | . . . . . Robots Hacked . | . . . . . Non-combat . | . . . . . Combat . | . . . . . Robot Hacks Applied . | . . . . . Relay Couplers Released . | . . . . . Fabnet Peak Effective % . | . . . . . Robots Rewired . | . . . . . Allies Hacked . | . . . . . Hacks Repelled . | . . . . . Allies | -11 -10 -10 -8 -7 -------- Run | Yrd Mat Sub Mat Fac Total Allies 3 | . . . . 3 Largest Group 3 | . . . . 3 Highest-Rated Group 60 | . . . . 60 Highest-Rated Ally 20 | . . . . 20 Total Orders . | . . . . . Ally Attacks 11 | . . . . 11 Total Damage 314 | . . . . 314 Kills 2 | . . . . 2 Allies Corrupted . | . . . . . Allies Melted 2 | . . . . 2 Intel | -11 -10 -10 -8 -7 ------- Run | Yrd Mat Sub Mat Fac Robot Analysis Total 1 | . 1 . . . Derelict Logs Recovered . | . . . . . Drone Launches . | . . . . . Drone Recoveries . | . . . . . Exploration | -11 -10 -10 -8 -7 ------------- Run | Yrd Mat Sub Mat Fac Turns Passed 4304 | 268 886 139 1266 1745 Spaces Moved 2886 | 123 769 67 682 1245 Core 19 | 14 . . . 5 Treads 125 | 91 . . 34 . Legs 1615 | . 145 67 616 787 Wheels 1127 | 18 624 . 32 453 Hover . | . . . . . Flight . | . . . . . Fastest Speed 50 | 50 80 120 90 97 Average Speed 108 | 135 87 180 130 101 Slowest Speed 190 | 160 120 190 190 180 Overloaded Moves . | . . . . . Propulsion Burnouts . | . . . . . Robots Hopped . | . . . . . Cave-ins Triggered . | . . . . . Exploration Rate (%) 30 | 7 91 10 26 17 Regions Visited 4 Branch Regions 1 Pre-discovered Areas . | . . . . . Known Exits Taken . | . . . . . Unknown Exits Taken 4 | 1 1 1 1 . Scrap Searched . | . . . . . Spaces Dug . | . . . . . Terrain Destroyed 121 | 5 1 . 85 30 Melee . | . . . . . Projectile 115 | . . . 85 30 AOE 6 | 5 1 . . . Terrain Rammed . | . . . . . Walls Destroyed . | . . . . . Machines Disabled . | . . . . . Actions | -11 -10 -10 -8 -7 --------- Run | Yrd Mat Sub Mat Fac Total 3725 | 198 924 79 910 1614 Wait 340 | 30 65 . 41 204 Move 2882 | 122 768 66 681 1245 Hop . | . . . . . Pick Up 114 | 15 16 3 43 37 Fast Attach . | . . . . . Attach 45 | 7 3 1 15 19 Detach 1 | . 1 . . . Swap 51 | 5 9 . 23 14 Drop 87 | 6 13 4 33 31 Fire 188 | 13 42 4 71 58 Melee . | . . . . . Ram 3 | . 3 . . . Kick 14 | . 4 1 3 6 Crush . | . . . . . Escape Stasis . | . . . . . Rewire . | . . . . . Trap . | . . . . . Miscellaneous . | . . . . . Route ------- -11/Scrapyard -10/Materials (discovered 5 exits: *Mat x3 / [*Min] / [*Sub]) -10/Subcaves -8/Materials -7/Factory History --------- Turn | Location | Event 10 | -11/Scrapyard | Discovered new exit (range 15) 269 | -11/Scrapyard | Entered Materials 307 | -10/Materials | Build established: Scavenger-Mutant 346 | -10/Materials | Discovered new exit (range 15) 451 | -10/Materials | Discovered new exit (range 16) 514 | -10/Materials | Discovered new exit (range 13) 514 | -10/Materials | Discovered new exit (range 10) 555 | -10/Materials | Identified exit to Materials 656 | -10/Materials | Build established: Mutant 1055 | -10/Materials | Repaired Broken Lgt. Assault Rifle 1155 | -10/Materials | Entered Subcaves 1258 | -10/Subcaves | Discovered new exit (range 12) 1272 | -10/Subcaves | Ambushed by swarm of Subdwellers 1276 | -10/Subcaves | Ambushed by Subdwellers from Twisted Machinery 1285 | -10/Subcaves | Ambushed by Subdweller buried in earth 1294 | -10/Subcaves | Entered Materials 1294 | -8/Materials | Evolved 4 slots: Propulsion x1, Utility x2, Weapon x1 1321 | -8/Materials | Lost 3 allies 1761 | -8/Materials | Build established: Scavenger-Skirmisher 2412 | -8/Materials | Discovered new exit (range 9) 2560 | -8/Materials | Entered Factory 2560 | -7/Factory | Evolved 2 slots: Power x1, Propulsion x1 2913 | -7/Factory | Build established: Tank 3921 | -7/Factory | Fabricated B-48 Gladiator? 4206 | -7/Factory | Build established: Gunner 4225 | -7/Factory | Garrison activated, responded to threat 4227 | -7/Factory | Cargo convoy interrupted 4275 | -7/Factory | Core integrity fell below 50% 4300 | -7/Factory | Core integrity fell below 20% 4305 | -7/Factory | Destroyed by Y-54 Guardian with Gatling Laser Last Messages --------------- Flak Gun destroyed. Penetrated by Slug. P-60 Hacker resets Y-54 Guardian, system corruption cleaned. Imp. Carbon-fiber Leg destroyed. R-06 Scavenger collects Assault Rifle. Slug penetrates H-55 Commando. H-55 Commando knocked back. U-05 Engineer builds a Wall. R-06 Scavenger collects Hvy. Machine Gun. Penetrated by Slug. Gauss Rifle destroyed. System corrupted: Energy discharge (-23). Penetrated by Slug. Slug penetrates H-55 Commando. H-55 Commando destroyed. Slug penetrates Wall. Gauss Cannon destroyed. Slug penetrates Wall. Imp. Heat Sink destroyed. Map ----- +----------------------------------------------------+ | ?????????????????????????????????????????????????? | | ?????????????????????????????????????????####+#+#? | | ?????????????????????????????????????????? #? | | ??????????????????????????????????????????# #? | | ??????????????????????????????????????????# #? | | ??????????????????????????????????????????# #? | | ??????????????????????????????????????????# #? | | ?????????????????? ??????????????????????# #? | | ?????????????????? ??????????????????????# ## | | ????????????????## ??????????????????????# % | | ???????????????? # ??????????????????????# | | ?????????????????# ????????????????????? + | | ?????????????????# #??????????????????????# | | ?????????????????# ??????????????????????# | | ?????????????????# ??????????????????????# ## | | ?????????????????# #??????????????????????# # | | ?????????????????#%#??????????????????????# # | | ?????????????????# #??????????????????????# # | | ????????????????## ##?????????????????????# # | | ??????????????#### ##?????????????????????# # | | ???????####+###"# ####################### # | | ???????# %%%% % %%!|% % [ # | | ????????????##""%%!!#########"= # | | ?????????????####"[%" #?????## !! """ # | | ???????????????###[;;;#;###### !! """ # | | ??????????????#; [%h @ # """ "" # | | ???????????????# p # "F"" # | | ???????????????# % Yp + """" # | | ???????????????# # #######+########### | | ???????????????# # ## #???? | | ???????????????# + ## #???? | | ???????????????###############+## #???? | | ?????????????????????????# # #???? | | ?????????????????????????# # #???? | | ?????????????????????????#""" # #???? | | ?????????????????????????#""" # #???? | | ?????????????????????????#""" # #???? | | ?????????????????????????# # #???? | | ?????????????????????????######## #???? | | ????????????????????????????????# #???? | | ????????????????????????????????# #???? | | ????????????????????????????????##############???? | | ?????????????????????????????????????????????????? | | ?????????????????????????????????????????????????? | | ?????????????????????????????????????????????????? | | ?????????????????????????????????????????????????? | | ?????????????????????????????????????????????????? | | ?????????????????????????????????????????????????? | | ?????????????????????????????????????????????????? | | ?????????????????????????????????????????????????? | +----------------------------------------------------+ Best States ------------- Heat Dissipation 67 Energy Generation 23 Energy Capacity 380 Matter Stores 300 Matter Capacity 300 Sight Range 16 Robot Scan Range 15 Terrain Scan Range 16 Terrain Scan Density 10 Jamming Range 12 Armor Coverage 800 Resistance: KI 20 Propulsion Shielding 33 Weapon Shielding 66 Evasion (%) 55 Targeting Accuracy 5 Target Analysis 5 Recoil Reduction 2 Energy Filtering 30 Item Schematics ----------------- None Robot Schematics ------------------ None Fabricated ------------ B-48 Gladiator | x3 | -7/Factory | Preloaded Alien Tech Used ----------------- None Achievements -------------- I Spy My Command Is Your Wish Power Corrupts Troublemaker Challenges ------------ None Game ------ Seed AntimatterShadeAnalyzer Manual? 0 Play Time 01:04:45 Cumulative 5.8 hours Start 2024.04.01 @ 18:57:12 End 2024.04.01 @ 20:00:07 Sessions 1 Manual Loads 0 Difficulty Rogue Special Mode None Game No. 5 Rogue 5 Adventurer 0 Explorer 0 Win Type - Total 0 Types 0/0/0/0/0/0/0/0/0 Lore% 2 Gallery% 10 Achievement% 9 Wizard Run 0 Options --------- Layout 1 ASCII 0 Keyboard 0 Movement Numpad Keybinds 0 Fullscreen 1 Font 24/Smallcaps Map View 50x35 Zoom Use 0% Tactical HUD 0 Map Filters NONE Filters NONE Steam 1 RUN: e9a5d976-35b4-4834-a215-a309726efddf